lending/lending_fUSD_20241214
["ID","MTS","AMOUNT","RATE_DAILY","PERIOD"]
[345310444,1734145841090,-382.28695192,0.00021199,3]
[345310445,1734145841100,-176.66118531,0.00021199,3]
[345310446,1734145841110,-500.0,0.00021199,3]
[345310447,1734145841119,-500.0,0.00021199,3]
[345310448,1734145841128,-500.0,0.00021199,3]
[345310449,1734145841139,-500.0,0.00021199,3]
[345310450,1734145841150,-500.0,0.00021199,3]
[345310451,1734145841161,-500.0,0.00021199,3]
[345310452,1734145841171,-500.0,0.00021199,3]
[345310453,1734145841181,-341.4873808,0.00021199,3]
[345310454,1734145841192,-211.29,0.00021199,3]
[345310455,1734145841202,-500.0,0.00021199,3]
[345310456,1734145841213,-500.0,0.00021199,3]
[345310457,1734145841223,-278.38,0.00021199,3]
[345310458,1734145841233,-500.0,0.00021199,3]
[345310459,1734145841243,-500.0,0.00021199,3]
[345310460,1734145841253,-500.0,0.00021199,3]
[345310461,1734145841265,-500.0,0.00021199,3]
[345310462,1734145841280,-431.75,0.00021199,3]
[345310463,1734145841290,-500.0,0.00021199,3]
[345310464,1734145841300,-500.0,0.00021199,3]
[345310465,1734145841310,-500.0,0.00021199,3]
[345310466,1734145841320,-500.0,0.00021199,3]
[345310467,1734145841330,-500.0,0.00021199,3]
[345310468,1734145841340,-500.0,0.00021199,3]
[345310469,1734145841350,-500.0,0.00021199,3]
[345310470,1734145841360,-500.0,0.00021199,3]
[345310471,1734145841370,-319.26857133,0.00021199,3]
[345310472,1734145841380,-500.0,0.00021199,3]
[345310473,1734145841390,-500.0,0.00021199,3]
[345310474,1734145841401,-500.0,0.00021199,3]
[345310475,1734145841411,-500.0,0.00021199,3]
[345310476,1734145841421,-500.0,0.00021199,3]
[345310477,1734145841431,-500.0,0.00021199,3]
[345310478,1734145841441,-500.0,0.00021199,3]
[345310479,1734145841451,-500.0,0.00021199,3]
[345310480,1734145841461,-500.0,0.00021199,3]
[345310481,1734145841471,-150.15,0.00021199,3]
[345310482,1734145841481,-613.34,0.00021199,3]
[345310483,1734145841491,-199.96,0.00021199,3]
[345310484,1734145841501,-500.0,0.00021199,3]
[345310485,1734145841511,-617.06035344,0.00021199,3]
[345310486,1734145841523,-360.83702139,0.00021199,3]
[345310487,1734145841535,-500.0,0.00021199,3]
[345310488,1734145841545,-500.0,0.00021199,3]
[345310489,1734145841555,-500.0,0.00021199,3]
[345310490,1734145841570,-500.0,0.00021199,3]
[345310491,1734145841581,-500.0,0.00021199,3]
[345310492,1734145841591,-500.0,0.00021199,3]
[345310493,1734145841601,-277.92,0.00021199,3]
[345310494,1734145841613,-316.29,0.00021199,3]
[345310495,1734145841623,-500.0,0.00021199,3]
[345310496,1734145841633,-500.0,0.00021199,3]
[345310497,1734145841644,-324.79,0.00021199,3]
[345310498,1734145841654,-500.0,0.00021199,3]
[345310499,1734145841664,-500.0,0.00021199,3]
[345310500,1734145841674,-500.0,0.00021199,3]
[345310501,1734145841683,-500.0,0.00021199,3]
[345310502,1734145841694,-500.0,0.00021199,3]
[345310503,1734145841704,-500.0,0.00021199,3]
[345310504,1734145841714,-500.0,0.00021199,3]
[345310505,1734145841723,-500.0,0.00021199,3]
[345310506,1734145841733,-500.0,0.00021199,3]
[345310507,1734145841743,-504.32258593,0.00021199,3]
[345310508,1734145841754,-500.0,0.00021199,3]
[345310509,1734145841764,-500.0,0.00021199,3]
[345310510,1734145841774,-500.0,0.00021199,3]
[345310511,1734145841784,-500.0,0.00021199,3]
[345310512,1734145841794,-593.28,0.00021199,3]
[345310513,1734145841803,-500.0,0.00021199,3]
[345310514,1734145841814,-609.56,0.00021199,3]
[345310515,1734145841824,-500.0,0.00021199,3]
[345310516,1734145841835,-500.0,0.00021199,3]
[345310517,1734145841845,-474.67,0.00021199,3]
[345310518,1734145841855,-500.0,0.00021199,3]
[345310519,1734145841867,-500.0,0.00021199,3]
[345310520,1734145841878,-500.0,0.00021199,3]
[345310521,1734145841889,-500.0,0.00021199,3]
[345310522,1734145841899,-331.09604776,0.00021199,3]
[345310523,1734145841909,-500.0,0.00021199,3]
[345310524,1734145841919,-500.0,0.00021199,3]
[345310525,1734145841929,-500.0,0.00021199,3]
[345310526,1734145841939,-197.15,0.00021199,3]
[345310527,1734145841950,-500.0,0.00021199,3]
[345310528,1734145841962,-290.53608715,0.00021199,3]
[345310529,1734145841972,-500.0,0.00021199,3]
[345310530,1734145841982,-500.0,0.00021199,3]
[345310531,1734145841994,-500.0,0.00021199,3]
[345310532,1734145842004,-500.0,0.00021199,3]
[345310533,1734145842014,-339.95,0.000212,2]
[345310534,1734145842024,-250000.0,0.000212,2]
[345310535,1734145842033,-556.0,0.000212,9]
[345310536,1734145842043,-500.0,0.00021246,3]
[345310537,1734145842055,-500.0,0.00021247,3]
[345310538,1734145842064,-500.0,0.00021247,3]
[345310539,1734145842076,-500.0,0.00021247,3]
[345310540,1734145842087,-624.32,0.00021247,3]
[345310541,1734145842098,-333.121412,0.00021248,9]
[345310542,1734145842107,-333.121412,0.00021248,7]
[345310543,1734145842118,-333.121412,0.00021248,8]
[345310544,1734145842129,-333.121412,0.00021248,6]
[345310545,1734145842139,-333.121412,0.00021248,5]
[345310546,1734145842150,-333.121412,0.00021248,4]
[345310547,1734145842160,-333.121412,0.00021248,3]
[345310548,1734145842170,-333.121412,0.00021248,2]
[345310549,1734145842180,-500.0,0.00021248,3]
[345310550,1734145842191,-335.38,0.00021248,3]
[345310551,1734145842200,-213.8,0.00021248,3]
[345310552,1734145842210,-500.0,0.00021248,3]
[345310553,1734145842222,-500.0,0.00021248,3]
[345310554,1734145842231,-500.0,0.00021248,3]
[345310555,1734145842241,-500.0,0.00021248,3]
[345310556,1734145842251,-500.0,0.00021248,3]
[345310557,1734145842262,-500.0,0.00021248,3]
[345310558,1734145842272,-500.0,0.00021248,3]
[345310559,1734145842282,-500.0,0.00021248,3]
[345310560,1734145842292,-500.0,0.00021248,3]
[345310561,1734145842302,-626.22,0.00021248,3]
[345310562,1734145842312,-500.0,0.00021248,3]
[345310563,1734145842322,-1000.0,0.00021249,2]
[345310564,1734145842332,-232.23641627,0.00021249,3]
[345310565,1734145842342,-500.0,0.00021249,3]
[345310566,1734145842354,-500.0,0.00021249,3]
[345310567,1734145842364,-500.0,0.00021249,3]
[345310568,1734145842375,-500.0,0.00021249,3]
[345310569,1734145842385,-500.0,0.00021249,3]
[345310570,1734145842396,-500.0,0.00021249,3]
[345310571,1734145842406,-500.0,0.00021249,3]
[345310572,1734145842416,-500.0,0.00021249,3]
[345310573,1734145842426,-500.0,0.00021249,3]
[345310574,1734145842437,-500.0,0.00021249,3]
[345310575,1734145842447,-500.0,0.00021249,3]
[345310576,1734145842458,-500.0,0.00021249,3]
[345310577,1734145842468,-500.0,0.00021249,3]
[345310578,1734145842479,-500.0,0.00021249,3]
[345310579,1734145842489,-500.0,0.00021249,3]
[345310580,1734145842499,-500.0,0.00021249,3]
[345310581,1734145842509,-500.0,0.00021249,3]
[345310582,1734145842520,-500.0,0.00021249,3]
[345310583,1734145842529,-500.0,0.00021249,3]
[345310586,1734145842540,-500.0,0.00021249,3]
[345310587,1734145842841,-500.0,0.00021249,3]
[345310588,1734145842850,-384.10759246,0.00021249,3]
[345310589,1734145842861,-500.0,0.00021249,3]
[345310590,1734145842873,-500.0,0.00021249,3]
[345310591,1734145842883,-500.0,0.00021249,3]
[345310592,1734145842892,-500.0,0.00021249,3]
[345310593,1734145842902,-500.0,0.00021249,3]
[345310594,1734145842911,-500.0,0.00021249,3]
[345310595,1734145842920,-500.0,0.00021249,3]
[345310596,1734145842929,-194.88,0.00021249,3]
[345310597,1734145842939,-500.0,0.00021249,2]
[345310598,1734145842949,-500.0,0.00021249,3]
[345310599,1734145842959,-165.92974412,0.00021249,3]
[345310600,1734145842968,-500.0,0.00021249,3]
[345310601,1734145842977,-500.0,0.00021249,3]
[345310602,1734145842986,-369.82,0.00021249,3]
[345310603,1734145842996,-500.0,0.00021249,3]
[345310604,1734145843005,-500.0,0.00021249,3]
[345310605,1734145843014,-273.01084064,0.00021249,3]
[345310606,1734145843024,-500.0,0.00021249,3]
[345310607,1734145843034,-329.16,0.00021249,3]
[345310608,1734145843044,-500.0,0.00021249,3]
[345310609,1734145843053,-500.0,0.00021249,3]
[345310610,1734145843063,-500.0,0.00021249,3]
[345310611,1734145843072,-432.82829819,0.00021249,3]
[345310612,1734145843082,-299.76870609,0.00021249,3]
[345310613,1734145843091,-500.0,0.00021249,3]
[345310614,1734145843101,-500.0,0.00021249,3]
[345310615,1734145843110,-626.16,0.00021249,3]
[345310616,1734145843119,-500.0,0.00021249,3]
[345310617,1734145843128,-500.0,0.00021249,3]
[345310618,1734145843137,-500.0,0.00021249,3]
[345310619,1734145843147,-500.0,0.00021249,3]
[345310620,1734145843156,-500.0,0.00021249,3]
[345310621,1734145843166,-536.09,0.00021249,3]
[345310622,1734145843174,-500.0,0.00021249,3]
[345310623,1734145843183,-500.0,0.00021249,3]
[345310624,1734145843192,-500.0,0.00021249,3]
[345310625,1734145843203,-500.0,0.00021249,3]
[345310626,1734145843212,-500.0,0.00021249,3]
[345310627,1734145843222,-500.0,0.00021249,3]
[345310628,1734145843232,-514.88961658,0.00021249,3]
[345310629,1734145843241,-500.0,0.00021249,3]
[345310630,1734145843252,-500.0,0.00021249,3]
[345310631,1734145843261,-500.0,0.00021249,3]
[345310632,1734145843272,-500.0,0.00021249,3]
[345310633,1734145843281,-500.0,0.00021249,3]
[345310634,1734145843291,-500.0,0.00021249,3]
[345310635,1734145843300,-500.0,0.00021249,3]
[345310636,1734145843310,-500.0,0.00021249,3]
[345310637,1734145843320,-446.04263353,0.00021249,3]
[345310638,1734145843329,-500.0,0.00021249,3]
[345310639,1734145843339,-500.0,0.00021249,3]
[345310640,1734145843349,-259.56,0.00021249,3]
[345310641,1734145843358,-500.0,0.00021249,3]
[345310642,1734145843367,-500.0,0.00021249,3]
[345310643,1734145843376,-500.0,0.00021249,3]
[345310644,1734145843385,-500.0,0.00021249,3]
[345310645,1734145843395,-242.24,0.00021249,3]
[345310646,1734145843404,-500.0,0.00021249,3]
[345310647,1734145843414,-500.0,0.00021249,3]
[345310648,1734145843423,-500.0,0.00021249,3]
[345310649,1734145843432,-450.64,0.00021249,3]
[345310650,1734145843442,-988.2,0.00021249,2]
[345310651,1734145843452,-500.0,0.00021249,2]
[345310652,1734145843461,-500.0,0.00021249,2]
[345310653,1734145843471,-500.0,0.00021249,3]
[345310654,1734145843481,-500.0,0.00021249,3]
[345310655,1734145843490,-500.0,0.00021249,3]
[345310656,1734145843499,-500.0,0.00021249,3]
[345310657,1734145843508,-500.0,0.00021249,3]
[345310658,1734145843518,-500.0,0.00021249,3]
[345310659,1734145843527,-500.0,0.00021249,3]
[345310660,1734145843536,-500.0,0.00021249,3]
[345310661,1734145843545,-500.0,0.00021249,3]
[345310662,1734145843554,-500.0,0.00021249,3]
[345310663,1734145843566,-500.0,0.00021249,3]
[345310664,1734145843576,-500.0,0.00021249,3]
[345310665,1734145843585,-500.0,0.00021249,3]
[345310666,1734145843595,-500.0,0.00021249,3]
[345310667,1734145843604,-500.0,0.00021249,3]
[345310668,1734145843614,-632.00741236,0.00021249,3]
[345310669,1734145843623,-500.0,0.00021249,3]
[345310670,1734145843632,-500.0,0.00021249,3]
[345310671,1734145843643,-500.0,0.00021249,3]
[345310672,1734145843653,-283.83588437,0.00021249,3]
[345310673,1734145843662,-333.121412,0.00021249,9]
[345310674,1734145843672,-333.121412,0.00021249,8]
[345310675,1734145843682,-500.0,0.00021249,3]
[345310676,1734145843691,-500.0,0.00021249,3]
[345310677,1734145843701,-500.0,0.00021249,3]
[345310678,1734145843710,-500.0,0.00021249,3]
[345310679,1734145843720,-500.0,0.00021249,3]
[345310680,1734145843730,-500.0,0.00021249,3]
[345310681,1734145843740,-500.0,0.00021249,3]
[345310682,1734145843750,-500.0,0.00021249,3]
[345310683,1734145843759,-500.0,0.00021249,3]
[345310684,1734145843768,-199.36,0.00021249,3]
[345310686,1734145843778,-333.121412,0.00021249,7]
[345310687,1734145843787,-333.121412,0.00021249,6]
[345310688,1734145843797,-500.0,0.00021249,3]
[345310689,1734145843806,-500.0,0.00021249,3]
[345310691,1734145843815,-500.0,0.00021249,3]
[345310692,1734145843825,-500.0,0.00021249,3]
[345310693,1734145843834,-500.0,0.00021249,3]
[345310694,1734145843843,-500.0,0.00021249,3]
[345310695,1734145843853,-612.74538315,0.00021249,3]
[345310696,1734145843863,-333.121412,0.00021249,5]
[345310697,1734145843872,-333.121412,0.00021249,4]
[345310698,1734145843882,-333.121412,0.00021249,3]
[345310699,1734145843891,-500.0,0.00021249,3]
[345310700,1734145843901,-500.0,0.00021249,3]
[345310701,1734145843910,-168.91,0.00021249,3]
[345310702,1734145843920,-333.121412,0.00021249,2]
[345310703,1734145843929,-500.0,0.00021249,3]
[345310704,1734145843938,-500.0,0.00021249,3]
[345310705,1734145843948,-500.0,0.00021249,3]
[345310706,1734145843958,-500.0,0.00021249,3]
[345310707,1734145843968,-500.0,0.00021249,3]
[345310708,1734145843978,-500.0,0.00021249,3]
[345310709,1734145843987,-500.0,0.00021249,3]
[345310710,1734145843996,-500.0,0.00021249,3]
[345310711,1734145844006,-500.0,0.00021249,3]
[345310712,1734145844016,-369.41063977,0.00021249,3]
[345310713,1734145844027,-500.0,0.00021249,3]
[345310714,1734145844037,-500.0,0.00021249,3]
[345310715,1734145844046,-483.2797142,0.00021249,3]
[345310716,1734145844056,-500.0,0.00021249,3]
[345310717,1734145844065,-500.0,0.00021249,3]
[345310718,1734145844074,-500.0,0.00021249,3]
[345310719,1734145844084,-500.0,0.00021249,3]
[345310720,1734145844094,-566.37468524,0.00021249,3]
[345310721,1734145844104,-360.3,0.00021249,3]
[345310722,1734145844113,-500.0,0.00021249,3]
[345310723,1734145844123,-500.0,0.00021249,3]
[345310724,1734145844133,-500.0,0.00021249,3]
[345310725,1734145844142,-500.0,0.00021249,3]
[345310726,1734145844152,-500.0,0.00021249,3]
[345310727,1734145844161,-269.54668877,0.00021249,3]
[345310728,1734145844171,-500.0,0.00021249,3]
[345310729,1734145844180,-500.0,0.00021249,3]
[345310730,1734145844189,-500.0,0.00021249,3]
[345310731,1734145844198,-500.0,0.00021249,3]
[345310732,1734145844207,-500.0,0.00021249,3]
[345310733,1734145844217,-500.0,0.00021249,3]
[345310734,1734145844226,-500.0,0.00021249,3]
[345310735,1734145844235,-500.0,0.00021249,3]
[345310736,1734145844244,-500.0,0.00021249,3]
[345310737,1734145844253,-500.0,0.00021249,3]
[345310738,1734145844263,-500.0,0.00021249,3]
[345310739,1734145844273,-500.0,0.00021249,3]
[345310740,1734145844283,-500.0,0.00021249,3]
[345310741,1734145844292,-500.0,0.00021249,3]
[345310742,1734145844302,-500.0,0.00021249,3]
[345310743,1734145844311,-500.0,0.00021249,3]
[345310744,1734145844320,-500.0,0.00021249,3]
[345310745,1734145844330,-286.82943263,0.00021249,3]
[345310746,1734145844339,-500.0,0.00021249,3]
[345310747,1734145844349,-500.0,0.00021249,3]
[345310748,1734145844359,-500.0,0.00021249,3]
[345310749,1734145844369,-236.29533236,0.00021249,3]
[345310750,1734145844378,-500.0,0.00021249,3]
[345310751,1734145844387,-500.0,0.00021249,3]
[345310752,1734145844397,-500.0,0.00021249,3]
[345310753,1734145844406,-229.2,0.00021249,3]
[345310754,1734145844416,-500.0,0.00021249,3]
[345310755,1734145844426,-500.0,0.00021249,3]
[345310756,1734145844436,-500.0,0.00021249,3]
[345310757,1734145844445,-633.71304599,0.00021249,3]
[345310758,1734145844455,-500.0,0.00021249,3]
[345310759,1734145844465,-500.0,0.00021249,3]
[345310760,1734145844474,-500.0,0.00021249,3]
[345310761,1734145844484,-500.0,0.00021249,3]
[345310762,1734145844494,-500.0,0.00021249,3]
[345310763,1734145844504,-500.0,0.00021249,3]
[345310764,1734145844515,-500.0,0.00021249,3]
[345310765,1734145844528,-500.0,0.00021249,3]
[345310766,1734145844538,-500.0,0.00021249,3]
[345310767,1734145844547,-500.0,0.00021249,3]
[345310768,1734145844556,-500.0,0.00021249,3]
[345310769,1734145844570,-500.0,0.00021249,3]
[345310770,1734145844580,-173.2,0.00021249,3]
[345310771,1734145844590,-500.0,0.00021249,3]
[345310772,1734145844600,-500.0,0.00021249,3]
[345310773,1734145844611,-500.0,0.00021249,3]
[345310774,1734145844620,-500.0,0.00021249,3]
[345310775,1734145844630,-500.0,0.00021249,3]
[345310776,1734145844640,-500.0,0.00021249,3]
[345310777,1734145844651,-500.0,0.00021249,3]
[345310778,1734145844661,-500.0,0.00021249,3]
[345310779,1734145844674,-500.0,0.00021249,3]
[345310780,1734145844683,-235.4,0.00021249,3]
[345310781,1734145844696,-500.0,0.00021249,3]
[345310782,1734145844706,-500.0,0.00021249,3]
[345310783,1734145844715,-500.0,0.00021249,3]
[345310784,1734145844725,-500.0,0.00021249,3]
[345310785,1734145844735,-500.0,0.00021249,3]
[345310786,1734145844744,-500.0,0.00021249,3]
[345310787,1734145844753,-500.0,0.00021249,3]
[345310788,1734145844763,-500.0,0.00021249,3]
[345310789,1734145844781,-500.0,0.00021249,3]
[345310790,1734145844791,-500.0,0.00021249,3]
[345310791,1734145844800,-500.0,0.00021249,3]
[345310792,1734145844810,-500.0,0.00021249,3]
[345310793,1734145844819,-500.0,0.00021249,3]
[345310794,1734145844828,-500.0,0.00021249,3]
[345310795,1734145844837,-500.0,0.00021249,3]
[345310796,1734145844846,-500.0,0.00021249,3]
[345310797,1734145844856,-315.54,0.00021249,3]
[345310798,1734145844865,-500.0,0.00021249,3]
[345310799,1734145844875,-500.0,0.00021249,3]
[345310800,1734145844884,-500.0,0.00021249,3]
[345310801,1734145844894,-500.0,0.00021249,3]
[345310802,1734145844903,-515.98391457,0.00021249,3]
[345310803,1734145844912,-500.0,0.00021249,3]
[345310804,1734145844921,-500.0,0.00021249,3]
[345310805,1734145844931,-500.0,0.00021249,3]
[345310806,1734145844940,-500.0,0.00021249,3]
[345310807,1734145844951,-500.0,0.00021249,3]
[345310808,1734145844962,-381.84,0.00021249,3]
[345310809,1734145844972,-500.0,0.00021249,3]
[345310810,1734145844979,-500.0,0.00021249,3]
[345310811,1734145844987,-500.0,0.00021249,3]
[345310812,1734145844997,-126392.87334382,0.0002125,4]
[345310813,1734145845007,-9267.3291504,0.0002125,2]
[345310814,1734145845016,-3591.07964192,0.0002125,2]
[345310815,1734145845026,-547.0,0.0002125,2]
[345310816,1734145845036,-567.0,0.0002125,2]
[345310817,1734145845045,-1263.0,0.0002125,2]
[345310818,1734145845055,-150.0,0.0002125,2]
[345310819,1734145845064,-2007.0,0.0002125,2]
[345310820,1734145845073,-632.0,0.0002125,2]
[345310821,1734145845083,-1401.648,0.0002125,2]
[345310822,1734145845092,-817.0,0.0002125,2]
[345310823,1734145845102,-1254.0,0.0002125,2]
[345310824,1734145845113,-3199.547,0.0002125,2]
[345310825,1734145845123,-535.0,0.0002125,2]
[345310826,1734145845134,-930.0,0.0002125,2]
[345310827,1734145845145,-16733179.88316367,0.0002125,2]
[345310828,1734145845155,-15439800.48652867,0.0002125,2]
[345310829,1734145845315,-2895.49586747,0.0002125,2]
[345310830,1734145845327,-13919.0196907,0.0002125,2]
[345310831,1734145845341,-999.9558921,0.0002125,2]
[345310832,1734145845352,-5940.0,0.0002125,2]
[345310833,1734145845364,-3545.15745475,0.0002125,2]
[345310834,1734145845381,-297.6,0.00021249,3]
[345310835,1734145845391,-185.88940392,0.0002125,2]
[345310836,1734145845406,-293.77145077,0.0002125,2]
[345310837,1734145845422,-13809.03869637,0.0002125,2]
[345310838,1734145845434,-6637.49245128,0.0002125,2]
[345310839,1734145845458,-128.45430821,0.0002125,2]
[345310840,1734145845495,-850.068927,0.0002125,2]
[345310843,1734145845962,-714.65,0.0002125,2]
[345310844,1734145845975,-9752.2,0.0002125,2]
[345310845,1734145846264,-1000.0,0.0002125,2]
[345310846,1734145846276,-286.87702,0.0002125,2]
[345310848,1734146237656,281.28,0.00010137,2]
[345310852,1734146533626,335.79,0.00012001,2]
[345310853,1734146571679,5814.255,0.00013122,7]
[345310854,1734146708906,34727494.80977315,0.0001,2]
[345310855,1734146740117,-281.28,0.00016813,2]
[345310856,1734146740139,-500.0,0.00017414,2]
[345310857,1734146740159,-500.0,0.00017414,2]
[345310858,1734146740180,-448.06,0.00018362,2]
[345310859,1734146740201,-93.86705342,0.00019606,2]
[345310860,1734146829098,-1609.66157717,0.00015,2]
[345310861,1734146829126,-944.41970402,0.00015,2]
[345310862,1734146829147,-4288.85832353,0.0001638,2]
[345310863,1734146829170,-500.0,0.00017414,2]
[345310864,1734146829191,-406.13294658,0.00019606,2]
[345310865,1734146829214,-759.78,0.00019937,2]
[345310866,1734146829235,-250.0,0.00020008,2]
[345310867,1734146829256,-600.38,0.00020079,2]
[345310868,1734146829277,-304.459,0.0002019,2]
[345310869,1734146829297,-584.86,0.00020214,2]
[345310870,1734146829317,-200.0,0.00020253,2]
[345310871,1734146829343,-162.55,0.00020269,30]
[345310872,1734146829363,-2748.86603967,0.00020319,2]
[345310873,1734146829395,-7.47396033,0.00020319,2]
[345310874,1734146829415,-165.41,0.00020329,2]
[345310875,1734146829437,-1000.0,0.0002043,2]
[345310876,1734146829458,-155.54,0.00020483,2]
[345310877,1734146829480,-250.0,0.00020561,2]
[345310878,1734146829501,-7.19854217,0.00020578,2]
[345310904,1734147032122,-250.0,0.00020323,2]
[345310905,1734147032130,-735.44299838,0.00020325,2]
[345310906,1734147032269,-264.55700162,0.00020325,2]
[345310907,1734147032279,-155.54,0.00020354,2]
[345310908,1734147032289,-983.09,0.00020547,2]
[345310909,1734147032298,-335.81299838,0.00020578,2]
[345310910,1734147032422,-648.11700162,0.00020578,2]
[345310911,1734147032432,-0.50800088,0.00020578,2]
[345310912,1734147032443,-1153.63637057,0.00020578,2]
[345310913,1734147032455,-451.72001,0.00020578,2]
[345310917,1734147038183,-239.42707638,0.00020578,2]
[345310918,1734147038193,-448.06,0.00020626,2]
[345310919,1734147038203,-1947.11,0.00020999,2]
[345310920,1734147038213,-975.36,0.00020999,2]
[345310921,1734147038222,-975.36,0.00020999,2]
[345310922,1734147038234,-975.36,0.00020999,2]
[345310923,1734147038243,-975.36,0.00020999,2]
[345310924,1734147038253,-975.36,0.00020999,2]
[345310925,1734147038262,-255.0,0.00021094,2]
[345310926,1734147038272,-500.0,0.00021095,3]
[345310927,1734147038281,-500.0,0.00021095,3]
[345310928,1734147038290,-500.0,0.00021095,3]
[345310929,1734147038299,-991.76,0.000211,2]
[345310930,1734147038308,-310.4938,0.000211,2]
[345310931,1734147038318,-695.3505,0.000211,2]
[345310932,1734147038327,-207.95833769,0.00021124,2]
[345310933,1734147038336,-168.91,0.00021199,3]
[345310934,1734147038345,-500.0,0.00021199,3]
[345310935,1734147038355,-500.0,0.00021199,3]
[345310936,1734147038364,-2442.18,0.00021199,3]
[345310937,1734147038374,-500.0,0.00021199,3]
[345310938,1734147038383,-500.0,0.00021199,3]
[345310939,1734147038394,-500.0,0.00021199,3]
[345310940,1734147038403,-500.0,0.00021199,3]
[345310941,1734147038414,-500.0,0.00021199,3]
[345310942,1734147038424,-500.0,0.00021199,3]
[345310943,1734147038434,-416.91980142,0.00021199,3]
[345310944,1734147038444,-500.0,0.00021199,3]
[345310945,1734147038453,-500.0,0.00021199,3]
[345310946,1734147038463,-305.96,0.000212,2]
[345310947,1734147038472,-250000.0,0.000212,2]
[345310948,1734147038483,-584.86,0.00021224,2]
[345310949,1734147038493,-501.79569608,0.00021249,3]
[345310950,1734147038502,-500.0,0.00021249,3]
[345310951,1734147038512,-150.121412,0.00021249,2]
[345310952,1734147038522,-1637.289,0.00021249,2]
[345310953,1734147038531,-246.121412,0.00021249,3]
[345310954,1734147038542,-150.57004243,0.00021249,3]
[345310955,1734147038551,-500.0,0.00021249,3]
[345310956,1734147038561,-366.72815687,0.00021249,3]
[345310957,1734147038571,-500.0,0.00021249,3]
[345310958,1734147038581,-500.0,0.00021249,3]
[345310959,1734147038591,-500.0,0.00021249,3]
[345310960,1734147038600,-500.0,0.00021249,3]
[345310961,1734147038610,-500.0,0.00021249,3]
[345310962,1734147038619,-500.0,0.00021249,3]
[345310963,1734147038629,-500.0,0.00021249,3]
[345310964,1734147038639,-500.0,0.00021249,3]
[345310965,1734147038649,-500.0,0.00021249,3]
[345310967,1734147038657,-500.0,0.00021249,3]
[345310969,1734147038667,-500.0,0.00021249,2]
[345310971,1734147038676,-500.0,0.00021249,3]
[345310973,1734147038686,-500.0,0.00021249,3]
[345310975,1734147038695,-500.0,0.00021249,3]
[345310977,1734147038705,-283.83588437,0.00021249,3]
[345310979,1734147038714,-500.0,0.00021249,3]
[345310981,1734147038724,-374.26826335,0.00021249,3]
[345310983,1734147038734,-307.90516161,0.00021249,3]
[345310985,1734147038744,-500.0,0.00021249,3]
[345310987,1734147038754,-299.76870609,0.00021249,3]
[345310988,1734147038764,-500.0,0.00021249,3]
[345310989,1734147038773,-500.0,0.00021249,3]
[345310990,1734147038783,-500.0,0.00021249,3]
[345310991,1734147038792,-333.121412,0.00021249,4]
[345310992,1734147038801,-333.121412,0.00021249,5]